[Event "Baku Open 2018"]
[Site "Baku"]
[Date "2018.11.25"]
[Round "2"]
[White "Popov, Ivan"]
[Black "Samadov, Read"]
[Result "1-0"]
[ECO "C03"]
[WhiteElo "2590"]
[BlackElo "2029"]
[Annotator "RC"]
[PlyCount "69"]
[EventDate "2018.11.24"]
[EventType "swiss"]
[EventCountry "AZE"]
[SourceTitle "playchess.com"]
[Source "ChessBase"]
[SourceQuality "1"]
[TimeControl "40/5400+30:1800+30"]

1. e4 {[%emt 0:00:00]} e6 {[%emt 0:01:15]} 2. d4 {[%emt 0:00:00]} d5 {[%emt 0:00:13]} 3. Nd2 {[%emt 0:00:00]} a6 {[%emt 0:00:05]} 4. g3 {[%emt 0:00:15]} c5 {[%emt 0:04:34]} 5. exd5 {[%emt 0:00:15]} Qxd5 {[%emt 0:09:18]} 6. Ngf3 {[%emt 0:00:14]} cxd4 {[%emt 0:03:18]} 7. Bg2 {[%emt 0:00:12]} Nc6 {[%emt 0:02:26]} 8. O-O {[%emt 0:01:06]} d3 {[%emt 0:09:02]} 9. c3 {[%emt 0:04:47]} Qd8 {[%emt 0:03:49]} 10. Qa4 {[%emt 0:16:51]} b5 {[%emt 0:09:10]} 11. Qf4 {[%emt 0:01:32]} Bb7 {[%emt 0:09:38]} 12. Ne5 {[%emt 0:03:07]} Nxe5 {[%emt 0:01:18]} 13. Bxb7 {[%emt 0:00:08]} Ra7 {[%emt 0:01:09]} 14. Bg2 {[%emt 0:04:57]} Qc7 {[%emt 0:05:37]} 15. a4 {[%emt 0:07:30]} f6 {[%emt 0:09:08]} 16. Nb3 {[%emt 0:06:29]} Qc4 {[%emt 0:02:46]} 17. axb5 {[%emt 0:05:54]} Qxb3 {[%emt 0:03:37]} 18. Be3 {[%emt 0:02:40]} Qxb5 {[%emt 0:02:12]} 19. Bxa7 {[%emt 0:00:09]} Kf7 {[%emt 0:02:05]} 20. b4 {[%emt 0:07:47]} Bd6 {[%emt 0:02:50]} 21. Ra5 {[%emt 0:00:52]} Qd7 {[%emt 0:00:46]} 22. Rxa6 {[%emt 0:00:18]} Ne7 {[%emt 0:00:47]} 23. Rd1 {[%emt 0:03:32]} g5 {[%emt 0:02:52]} 24. Qe4 {[%emt 0:03:14]} Kg7 {[%emt 0:02:05]} 25. Bd4 {[%emt 0:01:03]} Rd8 {[%emt 0:01:33]} 26. Ra7 {[%emt 0:01:17]} Qe8 {[%emt 0:01:29]} 27. Bxe5 {[%emt 0:00:25]} Bxe5 {[%emt 0:00:10]} 28. Rxd3 {[%emt 0:00:10]} h6 {[%emt 0:00:54]} 29. b5 {[%emt 0:02:37]} Bb8 {[%emt 0:01:14]} 30. Rb7 {[%emt 0:00:52]} e5 {[%emt 0:00:34]} 31. Qb4 {[%emt 0:01:32]} Kf7 {[%emt 0:00:36]} 32. Bc6 {[%emt 0:00:59]} Qf8 {[%emt 0:00:17]} 33. Qxe7+ {[%emt 0:00:22]} Qxe7 {[%emt 0:00:05]} 34. Rxd8 {[%emt 0:00:05]} Bc7 {[%emt 0:00:07]} 35. Rd7 {[%emt 0:00:06]} 1-0

[Event "Baku Open 2018"]
[Site "Baku"]
[Date "2018.11.25"]
[Round "2"]
[White "Sanikidze, Tornike"]
[Black "Ahadzade, Kanan"]
[Result "*"]
[WhiteElo "2512"]
[BlackElo "1977"]
[Annotator "ChessBase"]
[PlyCount "95"]
[EventDate "2018.11.24"]
[EventType "swiss"]
[EventCountry "AZE"]
[SourceTitle "playchess.com"]
[Source "ChessBase"]
[SourceQuality "1"]
[TimeControl "40/5400+30:1800+30"]

1. d4 {[%emt 0:00:00]} Nf6 {[%emt 0:09:47]} 2. c4 {[%emt 0:00:37]} e5 {[%emt 0:01:20]} 3. dxe5 {[%emt 0:01:28]} Ng4 {[%emt 0:01:29]} 4. Bf4 {[%emt 0:01:39]} Bb4+ {[%emt 0:00:07]} 5. Nd2 {[%emt 0:00:17]} Nc6 {[%emt 0:00:11]} 6. Ngf3 {[%emt 0:01:02]} Qe7 {[%emt 0:00:37]} 7. e3 {[%emt 0:01:43]} Ngxe5 {[%emt 0:01:06]} 8. Nxe5 {[%emt 0:03:53]} Nxe5 {[%emt 0:00:06]} 9. a3 {[%emt 0:00:20]} Bxd2+ {[%emt 0:00:21]} 10. Qxd2 {[%emt 0:00:06]} d6 {[%emt 0:00:03]} 11. c5 {[%emt 0:24:06]} dxc5 {[%emt 0:08:34]} 12. Qd5 {[%emt 0:00:12]} f6 {[%emt 0:05:25]} 13. Rc1 {[%emt 0:20:34]} c6 {[%emt 0:02:28]} 14. Qxc5 {[%emt 0:02:15]} Qxc5 {[%emt 0:00:35]} 15. Rxc5 {[%emt 0:00:06]} Nf7 {[%emt 0:01:12]} 16. Bd3 {[%emt 0:02:26]} Be6 {[%emt 0:02:04]} 17. Ke2 {[%emt 0:02:00]} Ke7 {[%emt 0:05:59]} 18. Rd1 {[%emt 0:01:47]} Rad8 {[%emt 0:04:36]} 19. h3 {[%emt 0:04:20]} h6 {[%emt 0:02:05]} 20. f3 {[%emt 0:11:07]} Rd7 {[%emt 0:02:59]} 21. Bg6 {[%emt 0:00:33]} Rxd1 {[%emt 0:01:38]} 22. Kxd1 {[%emt 0:00:03]} Rd8+ {[%emt 0:00:15]} 23. Ke2 {[%emt 0:00:46]} Rd5 {[%emt 0:04:12]} 24. Rxd5 {[%emt 0:03:06]} cxd5 {[%emt 0:01:49]} 25. Bc2 {[%emt 0:03:34]} Ne5 {[%emt 0:02:19]} 26. b3 {[%emt 0:00:02]} Bd7 {[%emt 0:00:23]} 27. a4 {[%emt 0:01:01]} Nc6 {[%emt 0:03:51]} 28. Kd2 {[%emt 0:00:12]} b5 {[%emt 0:03:17]} 29. Bc7 {[%emt 0:03:22]} Nb4 {[%emt 0:02:54]} 30. Bd1 {[%emt 0:00:01]} Na6 {[%emt 0:01:01]} 31. Ba5 {[%emt 0:00:21]} Ke6 {[%emt 0:02:10]} 32. b4 {[%emt 0:08:23]} bxa4 {[%emt 0:03:18]} 33. Be2 {[%emt 0:00:04]} Bc8 {[%emt 0:01:12]} 34. Kc3 {[%emt 0:00:49]} Nb8 {[%emt 0:02:52]} 35. Bc7 {[%emt 0:02:56]} Na6 {[%emt 0:02:05]} 36. Ba5 {[%emt 0:01:15]} Nb8 {[%emt 0:00:15]} 37. b5 {[%emt 0:00:12]} Nd7 {[%emt 0:00:54]} 38. Bc7 {[%emt 0:00:06]} Bb7 {[%emt 0:03:55]} 39. Kb4 {[%emt 0:00:52]} Nb6 {[%emt 0:01:16]} 40. Bb8 {[%emt 0:00:00]} Nc8 {[%emt 0:00:00]} 41. Kxa4 {[%emt 0:01:24]} f5 {[%emt 0:12:06]} 42. Kb4 {[%emt 0:00:20]} g5 {[%emt 0:03:30]} 43. g4 {[%emt 0:05:38]} fxg4 {[%emt 0:02:43]} 44. hxg4 {[%emt 0:00:07]} Nb6 {[%emt 0:01:26]} 45. Bxa7 {[%emt 0:00:23]} Nc4 {[%emt 0:00:29]} 46. Bxc4 {[%emt 0:04:04]} dxc4 {[%emt 0:00:02]} 47. e4 {[%emt 0:00:07]} Ke5 {[%emt 0:02:42]} 48. Be3 {[%emt 0:00:15]} *

[Event "Baku Open 2018"]
[Site "Baku"]
[Date "2018.11.25"]
[Round "2"]
[White "Isgandarov, Shahriyar"]
[Black "Aleksandrov, Aleksej"]
[Result "0-1"]
[ECO "C44"]
[WhiteElo "2125"]
[BlackElo "2599"]
[Annotator "RC"]
[PlyCount "70"]
[EventDate "2018.11.24"]
[EventType "swiss"]
[EventCountry "AZE"]
[SourceTitle "playchess.com"]
[Source "ChessBase"]
[SourceQuality "1"]
[TimeControl "40/5400+30:1800+30"]

1. e4 {[%emt 0:00:00]} e5 {[%emt 0:04:24]} 2. Nf3 {[%emt 0:00:00]} Nc6 {[%emt 0:00:05]} 3. d4 {[%emt 0:00:00]} exd4 {[%emt 0:00:09]} 4. Nxd4 {[%emt 0:00:01]} Nf6 {[%emt 0:00:09]} 5. Nc3 {[%emt 0:00:06]} Bb4 {[%emt 0:00:58]} 6. Nxc6 {[%emt 0:00:31]} bxc6 {[%emt 0:00:06]} 7. Bd3 {[%emt 0:00:07]} d5 {[%emt 0:00:08]} 8. exd5 {[%emt 0:02:19]} cxd5 {[%emt 0:00:19]} 9. O-O {[%emt 0:00:20]} O-O {[%emt 0:00:05]} 10. Bg5 {[%emt 0:00:18]} c6 {[%emt 0:00:06]} 11. Qf3 {[%emt 0:00:07]} Re8 {[%emt 0:08:04]} 12. h3 {[%emt 0:07:31]} Rb8 {[%emt 0:08:49]} 13. Ne2 {[%emt 0:04:56]} Bd6 {[%emt 0:00:11]} 14. Nd4 {[%emt 0:16:46]} Bd7 {[%emt 0:00:08]} 15. Rab1 {[%emt 0:01:02]} Be5 {[%emt 0:00:43]} 16. c3 {[%emt 0:03:39]} h6 {[%emt 0:04:04]} 17. Bh4 {[%emt 0:05:37]} Qa5 {[%emt 0:00:10]} 18. Nb3 {[%emt 0:08:33]} Qc7 {[%emt 0:12:48]} 19. Nc5 {[%emt 0:05:29]} Qd6 {[%emt 0:02:25]} 20. Nxd7 {[%emt 0:05:25]} Nxd7 {[%emt 0:00:22]} 21. Bc2 {[%emt 0:04:46]} g6 {[%emt 0:00:05]} 22. Qg4 {[%emt 0:05:23]} h5 {[%emt 0:02:40]} 23. Qd1 {[%emt 0:05:01]} Re6 {[%emt 0:03:16]} 24. Kh1 {[%emt 0:03:20]} Bf4 {[%emt 0:04:17]} 25. f3 {[%emt 0:05:07]} Rbe8 {[%emt 0:03:02]} 26. Qd3 {[%emt 0:05:04]} Ne5 {[%emt 0:03:04]} 27. Qd4 {[%emt 0:02:28]} Nc4 {[%emt 0:00:06]} 28. Rfe1 {[%emt 0:02:27]} Be3 {[%emt 0:00:15]} 29. Rxe3 {[%emt 0:03:47]} Rxe3 {[%emt 0:00:59]} 30. Qxa7 {[%emt 0:03:34]} Re2 {[%emt 0:05:50]} 31. Bd3 {[%emt 0:01:00]} Rxb2 {[%emt 0:01:07]} 32. Rd1 {[%emt 0:00:08]} Ne3 {[%emt 0:02:35]} 33. Rg1 {[%emt 0:00:58]} Rd2 {[%emt 0:05:10]} 34. Qa6 {[%emt 0:00:22]} Qf4 {[%emt 0:02:32]} 35. Be1 {[%emt 0:00:36]} Rxg2 {[%emt 0:00:19]} 0-1

[Event "Baku Open 2018"]
[Site "Baku"]
[Date "2018.11.27"]
[Round "4"]
[White "Abdulov, Orkhan"]
[Black "Eynullayev, Altay"]
[Result "1-0"]
[ECO "B20"]
[WhiteElo "2398"]
[BlackElo "2180"]
[Annotator "NA"]
[PlyCount "73"]
[EventDate "2018.11.24"]
[EventType "swiss"]
[EventCountry "AZE"]
[SourceTitle "playchess.com"]
[Source "ChessBase"]
[SourceQuality "1"]
[TimeControl "40/5400+30:1800+30"]

1. e4 {[%emt 0:07:12]} c5 {[%emt 0:00:44]} 2. d3 {[%emt 0:02:34]} Nc6 {[%emt 0:01:59]} 3. g3 {[%emt 0:00:45]} d6 {[%emt 0:00:53]} 4. Bg2 {[%emt 0:00:02]} g6 {[%emt 0:00:14]} 5. f4 {[%emt 0:00:01]} Bg7 {[%emt 0:02:53]} 6. Nf3 {[%emt 0:03:35]} e6 {[%emt 0:03:33]} 7. O-O {[%emt 0:00:59]} Nge7 {[%emt 0:00:45]} 8. c3 {[%emt 0:00:33]} O-O {[%emt 0:06:56]} 9. Be3 {[%emt 0:02:12]} b6 {[%emt 0:05:35]} 10. d4 {[%emt 0:01:18]} cxd4 {[%emt 0:03:02] B20: Sicilian: Unusual White 2nd moves} (10... Ba6 11. Re1 Rc8 12. Na3 Na5 13. Qd2 Qd7 14. Rad1 Rfd8 15. b3 cxd4 16. Bxd4 Qc7 17. Bxg7 Kxg7 18. c4 {0-1 (58) Amin,B (2643)-Leon Hoyos,M (2579) Istanbul 2012}) 11. Nxd4 {[%emt 0:02:54] LiveBook: 3 Games} Ba6 {[%emt 0:15:42]} 12. Rf2 {[%emt 0:08:10]} Qd7 $146 {[%emt 0:10:05]} ({Predecessor:} 12... Rc8 13. Nxc6 Rxc6 14. Rd2 Qb8 15. a4 d5 16. Na3 dxe4 17. Bxe4 Rcc8 18. Nb5 {½-½ (76) Bocharov,I (2489)-Alikulov,E (2401) Sochi 2015}) 13. Nxc6 {[%emt 0:06:56]} Nxc6 {[%emt 0:00:48]} 14. f5 {[%emt 0:00:01]} (14. Qa4 $14 Bb7 15. Na3) 14... exf5 {[%emt 0:05:23]} 15. exf5 {[%emt 0:01:13]} Rae8 {[%emt 0:01:11]} ({Reject} 15... gxf5 $6 16. Qa4 $14) 16. Bg5 {[%emt 0:15:21]} h6 {[%emt 0:05:02]} ({Black should play} 16... Ne5 $17 17. f6 Bh8) 17. Bd2 {[%emt 0:04:20]} (17. Bf4 $11) 17... gxf5 {[%emt 0:06:36]} (17... Ne5 $17 18. f6 Bh8) 18. Qa4 {[%emt 0:13:01]} Bb7 {[%emt 0:05:37]} 19. Na3 {[%emt 0:02:58]} a6 {[%emt 0:06:23]} 20. Raf1 {[%emt 0:04:46]} b5 {[%emt 0:02:41]} 21. Qh4 $11 {[%emt 0:00:47]} Re6 {[%emt 0:02:32]} 22. Nc2 {[%emt 0:05:21]} Ne7 {[%emt 0:09:29]} 23. Nd4 {[%emt 0:06:46]} Rf6 {[%emt 0:00:29]} 24. Bh3 {[%emt 0:04:47]} Qc7 {[%emt 0:02:01]} 25. Qh5 {[%emt 0:02:05]} Qc5 {[%emt 0:00:56]} 26. Qe2 {[%emt 0:02:04]} Be4 {[%emt 0:00:44]} 27. Bxf5 {[%emt 0:01:06]} Nxf5 {[%emt 0:00:43]} 28. Qxe4 {[%emt 0:00:10]} Nxd4 {[%emt 0:00:28]} 29. cxd4 {[%emt 0:00:10]} Rxf2 {[%emt 0:00:34]} 30. dxc5 {[%emt 0:00:06]} Rxd2 {[%emt 0:00:03]} 31. c6 {[%emt 0:00:26]} Rd4 {[%emt 0:00:43]} 32. Qe7 {[%emt 0:00:38]} d5 {[%emt 0:00:21]} 33. Rc1 {[%emt 0:00:52]} Re4 {[%emt 0:00:10]} 34. Qd7 {[%emt 0:00:18]} Bxb2 {[%emt 0:00:11]} 35. Rc2 {[%emt 0:00:42]} Bd4+ {[%emt 0:01:15]} 36. Kg2 {[%emt 0:00:03]} Ree8 {[%emt 0:00:37]} 37. c7 {[%emt 0:00:17]} 1-0

[Event "Baku Open 2018"]
[Site "Baku"]
[Date "2018.11.27"]
[Round "4"]
[White "Mgeladze, Tamaz"]
[Black "Gareyev, Timur"]
[Result "1/2-1/2"]
[ECO "A12"]
[WhiteElo "2395"]
[BlackElo "2584"]
[Annotator "RC"]
[PlyCount "225"]
[EventDate "2018.11.24"]
[EventType "swiss"]
[EventCountry "AZE"]
[SourceTitle "playchess.com"]
[Source "ChessBase"]
[SourceQuality "1"]
[TimeControl "40/5400+30:1800+30"]

1. c4 {[%emt 0:00:00]} c6 {[%emt 0:07:36]} 2. Nf3 {[%emt 0:02:03]} Nf6 {[%emt 0:00:17]} 3. g3 {[%emt 0:01:31]} d5 {[%emt 0:00:07]} 4. b3 {[%emt 0:01:29]} Bg4 {[%emt 0:00:42]} 5. Bg2 {[%emt 0:00:11]} Nbd7 {[%emt 0:00:13]} 6. Bb2 {[%emt 0:00:20]} e6 {[%emt 0:02:55]} 7. d3 {[%emt 0:01:42]} Bd6 {[%emt 0:01:39]} 8. O-O {[%emt 0:00:33]} h5 {[%emt 0:02:33]} 9. Nbd2 {[%emt 0:06:21]} h4 {[%emt 0:02:03]} 10. e4 {[%emt 0:06:43]} hxg3 {[%emt 0:05:03]} 11. hxg3 {[%emt 0:00:17]} dxe4 {[%emt 0:05:09]} 12. Nxe4 {[%emt 0:01:08]} Be5 {[%emt 0:22:28]} 13. Qc2 {[%emt 0:21:48]} Bxf3 {[%emt 0:21:17]} 14. Bxf3 {[%emt 0:00:14]} Nxe4 {[%emt 0:02:27]} 15. Bxe4 {[%emt 0:00:16]} Qf6 {[%emt 0:01:21]} 16. Bxe5 {[%emt 0:03:34]} Qxe5 {[%emt 0:05:10]} 17. Rfe1 {[%emt 0:03:35]} Qd4 {[%emt 0:01:30]} 18. b4 {[%emt 0:01:31]} O-O {[%emt 0:01:05]} 19. Rab1 {[%emt 0:05:31]} Rfd8 {[%emt 0:00:01]} 20. b5 {[%emt 0:01:51]} Rac8 {[%emt 0:01:33]} 21. bxc6 {[%emt 0:02:18]} bxc6 {[%emt 0:00:06]} 22. Qa4 {[%emt 0:04:01]} Ne5 {[%emt 0:05:16]} 23. Rb7 {[%emt 0:00:48]} f5 {[%emt 0:00:47]} 24. Bg2 {[%emt 0:00:32]} Nxd3 {[%emt 0:00:12]} 25. Re3 {[%emt 0:07:43]} Nc5 {[%emt 0:03:05]} 26. Qxa7 {[%emt 0:00:09]} Nxb7 {[%emt 0:01:01]} 27. Qxb7 {[%emt 0:00:03]} Qxc4 {[%emt 0:00:17]} 28. a4 {[%emt 0:00:34]} Qxa4 {[%emt 0:02:27]} 29. Rxe6 {[%emt 0:00:20]} Qd1+ {[%emt 0:00:31]} 30. Kh2 {[%emt 0:00:32]} Qh5+ {[%emt 0:00:10]} 31. Bh3 {[%emt 0:00:17]} Rb8 {[%emt 0:03:57]} 32. Qxc6 {[%emt 0:02:27]} Rb2 {[%emt 0:00:09]} 33. Kg2 {[%emt 0:00:01]} Qf7 {[%emt 0:02:41]} 34. Kg1 {[%emt 0:05:28]} Rb1+ {[%emt 0:00:12]} 35. Kh2 {[%emt 0:00:19]} Rb2 {[%emt 0:00:12]} 36. Kg1 {[%emt 0:00:17]} Rbd2 {[%emt 0:00:47]} 37. Re5 {[%emt 0:02:43]} Rd1+ {[%emt 0:00:23]} 38. Kh2 {[%emt 0:00:26]} R1d6 {[%emt 0:00:06]} 39. Qc5 {[%emt 0:00:50]} Rd5 {[%emt 0:00:48]} 40. Qb6 {[%emt 0:00:00]} Rxe5 {[%emt 0:00:00]} 41. Qxd8+ {[%emt 0:01:38]} Re8 {[%emt 0:01:33]} 42. Qd6 {[%emt 0:00:29]} g6 {[%emt 0:05:59]} 43. Bg2 {[%emt 0:01:05]} Kg7 {[%emt 0:01:05]} 44. Bd5 {[%emt 0:00:36]} Qa7 {[%emt 0:00:52]} 45. Kg2 {[%emt 0:03:31]} Re2 {[%emt 0:01:18]} 46. Qf4 {[%emt 0:00:04]} Qc5 {[%emt 0:00:18]} 47. Kf1 {[%emt 0:02:20]} Re7 {[%emt 0:09:33]} 48. Qd2 {[%emt 0:04:09]} Rd7 {[%emt 0:02:47]} 49. Qb2+ {[%emt 0:00:47]} Kh7 {[%emt 0:00:17]} 50. Bf3 {[%emt 0:01:39]} Qd4 {[%emt 0:00:02]} 51. Qb8 {[%emt 0:00:46]} Re7 {[%emt 0:02:54]} 52. Kg2 {[%emt 0:01:41]} Kg7 {[%emt 0:00:03]} 53. Qa8 {[%emt 0:01:21]} Ra7 {[%emt 0:02:35]} 54. Qe8 {[%emt 0:00:30]} Qd6 {[%emt 0:00:47]} 55. Qe3 {[%emt 0:00:49]} Re7 {[%emt 0:00:17]} 56. Qc3+ {[%emt 0:02:30]} Qe5 {[%emt 0:00:01]} 57. Qc1 {[%emt 0:00:01]} Qd4 {[%emt 0:00:15]} 58. Qc8 {[%emt 0:02:36]} f4 {[%emt 0:00:37]} 59. g4 {[%emt 0:00:57]} Qe5 {[%emt 0:01:00]} 60. Qd8 {[%emt 0:00:25]} Qf6 {[%emt 0:01:05]} 61. Qd5 {[%emt 0:01:00]} Kh6 {[%emt 0:00:22]} 62. Qd8 {[%emt 0:01:10]} Kg5 {[%emt 0:00:22]} 63. Qd5+ {[%emt 0:00:31]} Re5 {[%emt 0:00:06]} 64. Qd4 {[%emt 0:00:42]} Kh6 {[%emt 0:01:33]} 65. Qd7 {[%emt 0:00:30]} Qe7 {[%emt 0:00:59]} 66. Qd4 {[%emt 0:00:04]} Qf6 {[%emt 0:00:31]} 67. Qd7 {[%emt 0:00:03]} Re7 {[%emt 0:00:08]} 68. Qd8 {[%emt 0:00:09]} Re6 {[%emt 0:00:43]} 69. Qd5 {[%emt 0:03:01]} Rd6 {[%emt 0:00:12]} 70. Qa5 {[%emt 0:00:13]} Rd4 {[%emt 0:01:31]} 71. Qc3 {[%emt 0:03:17]} Qd6 {[%emt 0:00:50]} 72. Qc8 {[%emt 0:00:31]} Kg7 {[%emt 0:00:31]} 73. Qb7+ {[%emt 0:00:33]} Kf8 {[%emt 0:00:40]} 74. Qh7 {[%emt 0:01:04]} Qf6 {[%emt 0:01:09]} 75. Qc7 {[%emt 0:00:33]} Rd2 {[%emt 0:00:59]} 76. Qc5+ {[%emt 0:01:44]} Qd6 {[%emt 0:01:24]} 77. Qc8+ {[%emt 0:00:29]} Kg7 {[%emt 0:00:12]} 78. Qe8 {[%emt 0:00:22]} Qc5 {[%emt 0:00:43]} 79. Qe1 {[%emt 0:00:39]} Qe3 {[%emt 0:00:57]} 80. Qf1 {[%emt 0:01:05]} Kf6 {[%emt 0:01:04]} 81. Qa6+ {[%emt 0:02:18]} Kg5 {[%emt 0:00:40]} 82. Qb5+ {[%emt 0:00:11]} Kh4 {[%emt 0:00:44]} 83. Qf1 {[%emt 0:00:04]} Rc2 {[%emt 0:01:15]} 84. Qh1+ {[%emt 0:01:10]} Kg5 {[%emt 0:00:02]} 85. Qf1 {[%emt 0:00:01]} Rb2 {[%emt 0:00:24]} 86. Qg1 {[%emt 0:00:48]} Qd2 {[%emt 0:00:35]} 87. Qf1 {[%emt 0:00:02]} Rc2 {[%emt 0:01:36]} 88. Qb5+ {[%emt 0:00:20]} Kf6 {[%emt 0:01:41]} 89. g5+ {[%emt 0:04:19]} Ke7 {[%emt 0:00:05]} 90. Qe5+ {[%emt 0:00:23]} Kd8 {[%emt 0:00:16]} 91. Qb8+ {[%emt 0:00:46]} Kd7 {[%emt 0:00:31]} 92. Qa7+ {[%emt 0:01:03]} Kd6 {[%emt 0:00:43]} 93. Qb6+ {[%emt 0:00:12]} Ke7 {[%emt 0:00:45]} 94. Qf6+ {[%emt 0:00:05]} Kd7 {[%emt 0:00:19]} 95. Qf7+ {[%emt 0:00:49]} Kd8 {[%emt 0:00:06]} 96. Qf8+ {[%emt 0:01:28]} Kc7 {[%emt 0:00:08]} 97. Qf7+ {[%emt 0:00:02]} Kb6 {[%emt 0:00:39]} 98. Qxg6+ {[%emt 0:00:53]} Ka5 {[%emt 0:00:07]} 99. Qf5+ {[%emt 0:00:02]} Ka4 {[%emt 0:01:01]} 100. Qe4+ {[%emt 0:00:30]} Ka3 {[%emt 0:00:11]} 101. Qa8+ {[%emt 0:00:37]} Kb2 {[%emt 0:00:05]} 102. Qb7+ {[%emt 0:00:32]} Kc1 {[%emt 0:00:09]} 103. Qa7 {[%emt 0:00:18]} Ra2 {[%emt 0:01:56]} 104. Qc5+ {[%emt 0:00:18]} Rc2 {[%emt 0:00:18]} 105. Qa3+ {[%emt 0:00:23]} Kb1 {[%emt 0:00:15]} 106. Qb3+ {[%emt 0:03:01]} Ka1 {[%emt 0:00:15]} 107. Qa4+ {[%emt 0:01:03]} Kb2 {[%emt 0:00:36]} 108. Qb5+ {[%emt 0:01:18]} Ka1 {[%emt 0:00:11]} 109. Qa6+ {[%emt 0:00:21]} Ra2 {[%emt 0:01:12]} 110. Qf1+ {[%emt 0:00:04]} Kb2 {[%emt 0:00:02]} 111. Qb5+ {[%emt 0:00:22]} Ka1 {[%emt 0:00:10]} 112. Qf1+ {[%emt 0:00:04]} Kb2 {[%emt 0:00:05]} 113. Qb5+ {[%emt 0:00:02]} 1/2-1/2

[Event "Baku Open 2018"]
[Site "Baku"]
[Date "2018.11.27"]
[Round "4"]
[White "Jafarli, Babak"]
[Black "Sevdimaliyev, Urfan"]
[Result "1/2-1/2"]
[ECO "B02"]
[WhiteElo "2132"]
[BlackElo "2386"]
[Annotator "NA"]
[PlyCount "163"]
[EventDate "2018.11.24"]
[EventType "swiss"]
[EventCountry "AZE"]
[SourceTitle "playchess.com"]
[Source "ChessBase"]
[SourceQuality "1"]
[TimeControl "40/5400+30:1800+30"]

1. e4 {[%emt 0:02:36]} Nf6 {[%emt 0:00:00]} 2. e5 {[%emt 0:00:29]} Nd5 {[%emt 0:00:03]} 3. c4 {[%emt 0:00:05]} Nb6 {[%emt 0:00:06]} 4. c5 {[%emt 0:00:19]} Nd5 {[%emt 0:00:09]} 5. Bc4 {[%emt 0:00:02]} e6 {[%emt 0:02:22]} 6. Nc3 {[%emt 0:00:14]} Nxc3 {[%emt 0:02:24]} 7. bxc3 {[%emt 0:00:32] LiveBook: 7 Games} Bxc5 {[%emt 0:05:46] B02: Alekhine's Defence: Chase Variation and lines with early Nc3} 8. Qg4 {[%emt 0:00:40]} O-O $146 {[%emt 0:10:40]} ({Predecessor:} 8... Bf8 9. d4 d5 10. Bd3 c5 11. Ne2 Nc6 12. O-O Qc7 13. Ng3 g6 14. Bg5 Be7 15. Bb5 {0-1 (23) Napoli,N (2172)-Mrdja,M (2432) Campobasso 2004}) 9. d4 {[%emt 0:09:17]} f5 {[%emt 0:01:07]} 10. Qg3 {[%emt 0:00:05]} Be7 {[%emt 0:01:04]} 11. Nf3 {[%emt 0:00:06]} Qe8 {[%emt 0:02:58]} 12. h4 {[%emt 0:02:57]} d6 {[%emt 0:15:03]} (12... b6 $15) 13. Bh6 {[%emt 0:03:29]} Qg6 {[%emt 0:04:24]} 14. Qxg6 {[%emt 0:01:14]} hxg6 {[%emt 0:00:04]} 15. Bg5 {[%emt 0:00:02]} Kf7 {[%emt 0:06:48]} 16. h5 {[%emt 0:12:41]} gxh5 {[%emt 0:03:05]} 17. Bxe7 {[%emt 0:00:55]} Kxe7 {[%emt 0:00:04]} 18. Rxh5 {[%emt 0:00:21]} Nc6 {[%emt 0:01:54]} 19. Rg5 {[%emt 0:01:44]} Rg8 {[%emt 0:03:46]} 20. g4 {[%emt 0:06:23]} fxg4 {[%emt 0:05:06]} 21. Rxg4 {[%emt 0:03:28]} dxe5 {[%emt 0:01:17]} 22. dxe5 {[%emt 0:02:45]} Bd7 {[%emt 0:00:17]} 23. Ke2 {[%emt 0:05:45]} Raf8 {[%emt 0:02:51]} 24. Rg5 {[%emt 0:01:37]} Rf4 {[%emt 0:04:48]} 25. Bd3 {[%emt 0:01:57]} Rgf8 {[%emt 0:03:20]} 26. Rxg7+ {[%emt 0:01:52]} Kd8 {[%emt 0:00:09]} 27. Rg3 {[%emt 0:05:52]} Ne7 {[%emt 0:03:27]} 28. c4 {[%emt 0:03:00]} Bc6 {[%emt 0:03:36]} 29. Ng5 {[%emt 0:00:45]} Rxf2+ {[%emt 0:01:38]} 30. Ke3 {[%emt 0:00:22]} Bd7 {[%emt 0:05:58]} 31. Nh7 {[%emt 0:03:12]} R8f4 {[%emt 0:00:08]} 32. Nf6 {[%emt 0:00:28]} Bc6 {[%emt 0:01:49]} 33. Rd1 {[%emt 0:02:22]} R2f3+ {[%emt 0:02:48]} 34. Rxf3 {[%emt 0:00:07]} Rxf3+ {[%emt 0:00:02]} 35. Ke2 {[%emt 0:00:06]} Kc8 {[%emt 0:01:03]} 36. Rg1 {[%emt 0:02:06]} b6 {[%emt 0:03:27]} 37. Ng8 {[%emt 0:04:54]} Nxg8 {[%emt 0:02:15]} 38. Rxg8+ {[%emt 0:00:05]} Kb7 {[%emt 0:02:23]} 39. Rg6 {[%emt 0:00:16]} Rh3 {[%emt 0:00:28]} 40. Rxe6 {[%emt 0:00:00]} Rh2+ {[%emt 0:00:00]} 41. Ke3 {[%emt 0:01:06]} Rxa2 {[%emt 0:03:20]} 42. Rh6 {[%emt 0:03:07]} Ra5 {[%emt 0:08:33]} 43. Kd4 {[%emt 0:04:00]} Ra1 {[%emt 0:01:35]} 44. Rh8 {[%emt 0:03:02]} Re1 {[%emt 0:01:41]} 45. Bf5 {[%emt 0:04:07]} a5 {[%emt 0:01:54]} 46. Bc8+ {[%emt 0:01:05]} Ka7 {[%emt 0:00:05]} 47. e6 {[%emt 0:00:07]} a4 {[%emt 0:02:22]} 48. Rh3 {[%emt 0:00:18]} Kb8 {[%emt 0:06:27]} 49. Bd7 {[%emt 0:01:08]} Bxd7 {[%emt 0:01:05]} 50. exd7 {[%emt 0:00:15]} Rd1+ {[%emt 0:00:02]} 51. Kc3 {[%emt 0:00:46]} c5 {[%emt 0:02:58]} 52. Rh8+ {[%emt 0:00:21]} Kc7 {[%emt 0:00:26]} 53. Ra8 {[%emt 0:00:05]} Kxd7 {[%emt 0:00:28]} 54. Rxa4 {[%emt 0:00:09]} Rh1 {[%emt 0:00:28]} 55. Ra7+ {[%emt 0:00:30]} Kd6 {[%emt 0:00:14]} 56. Rb7 {[%emt 0:00:21]} Rh3+ {[%emt 0:00:06]} 57. Kc2 {[%emt 0:00:17]} Kc6 {[%emt 0:00:57]} 58. Rg7 {[%emt 0:00:06]} Re3 {[%emt 0:00:13]} 59. Rh7 {[%emt 0:00:34]} Kd6 {[%emt 0:01:00]} 60. Rh5 {[%emt 0:00:27]} Re7 {[%emt 0:00:17]} 61. Rh6+ {[%emt 0:00:34]} Kc7 {[%emt 0:00:05]} 62. Rh8 {[%emt 0:00:19]} Kb7 {[%emt 0:00:19]} 63. Kb3 {[%emt 0:00:36]} Re3+ {[%emt 0:00:25]} 64. Kc2 {[%emt 0:00:06]} Ra3 {[%emt 0:00:24]} 65. Kb2 {[%emt 0:00:15]} Ra8 {[%emt 0:00:23]} 66. Rh7+ {[%emt 0:01:15]} Ka6 {[%emt 0:00:20]} 67. Rh1 {[%emt 0:00:09]} Rd8 {[%emt 0:00:36]} 68. Ra1+ {[%emt 0:00:07]} Kb7 {[%emt 0:00:03]} 69. Rh1 {[%emt 0:00:06]} Rd3 {[%emt 0:00:55]} 70. Kc2 {[%emt 0:00:11]} Ra3 {[%emt 0:01:05]} 71. Kb2 {[%emt 0:00:06]} Re3 {[%emt 0:00:29]} 72. Kc2 {[%emt 0:00:06]} Re6 {[%emt 0:01:17]} 73. Kc3 {[%emt 0:00:18]} Kc6 {[%emt 0:00:16]} 74. Rh8 {[%emt 0:00:34]} Kd6 {[%emt 0:00:16]} 75. Rd8+ {[%emt 0:01:12]} Ke5 {[%emt 0:00:19]} 76. Kb3 {[%emt 0:02:53]} Rd6 {[%emt 0:01:38]} 77. Rh8 $11 {[%emt 0:00:24]} Rd3+ {[%emt 0:01:21]} 78. Ka4 {[%emt 0:00:21]} Re3 {[%emt 0:02:27]} 79. Rh4 {[%emt 0:06:54]} Re4 {[%emt 0:00:53]} 80. Rh5+ {[%emt 0:00:57]} Kd4 {[%emt 0:01:10]} 81. Kb5 {[%emt 0:00:08]} Re6 {[%emt 0:01:40]} 82. Rh4+ {[%emt 0:00:29]} 1/2-1/2